[Event "XIII Mediterranean Championship 2023"]
[Site "Castell-Platja d Aro"]
[Date "2023.11.05"]
[Round "3.6"]
[White "Rojano Alfonso, Carlos"]
[Black "Iermito, Sebastian"]
[Result "0-1"]
[ECO "A04"]
[WhiteElo "2207"]
[BlackElo "2521"]
[Annotator "RC"]
[PlyCount "46"]
[EventDate "2023.10.26"]
[EventType "swiss"]
[EventCountry "ESP"]
[SourceTitle "playchess.com"]
[Source "ChessBase"]
[SourceQuality "1"]
[TimeControl "5400+30"]

1. Nf3 {[%emt 0:00:03]} c5 {[%emt 0:00:11]} 2. b3 {[%emt 0:00:04]} Nc6 {[%emt 0:01:08]} 3. Bb2 {[%emt 0:00:07]} d6 {[%emt 0:00:19]} 4. e3 {[%emt 0:01:13]} e5 {[%emt 0:00:08]} 5. d3 {[%emt 0:02:05]} g6 {[%emt 0:00:41]} 6. c4 {[%emt 0:00:28]} Bg7 {[%emt 0:00:09]} 7. Nc3 {[%emt 0:00:09]} Nge7 {[%emt 0:00:22]} 8. Qd2 {[%emt 0:01:12]} h6 {[%emt 0:04:18]} 9. g3 {[%emt 0:03:32]} O-O {[%emt 0:01:00]} 10. O-O-O {[%emt 0:01:51]} d5 {[%emt 0:06:24]} 11. cxd5 {[%emt 0:04:44]} Nxd5 {[%emt 0:00:10]} 12. Nxd5 {[%emt 0:00:12]} Qxd5 {[%emt 0:00:01]} 13. Bg2 {[%emt 0:00:13]} a5 {[%emt 0:04:45]} 14. Ne1 {[%emt 0:03:55]} Qd6 {[%emt 0:02:39]} 15. Bxc6 {[%emt 0:04:55]} Qxc6 {[%emt 0:00:51]} 16. Nc2 {[%emt 0:00:12]} a4 {[%emt 0:03:33]} 17. f4 {[%emt 0:07:14]} axb3 {[%emt 0:00:19]} 18. axb3 {[%emt 0:00:09]} Be6 {[%emt 0:15:34]} 19. fxe5 {[%emt 0:03:17]} Bxb3 {[%emt 0:00:59]} 20. Qc3 {[%emt 0:00:40]} Qe6 {[%emt 0:06:01]} 21. Kd2 {[%emt 0:04:20]} b5 {[%emt 0:01:48]} 22. Rc1 {[%emt 0:02:35]} Ra2 {[%emt 0:02:13]} 23. Na1 {[%emt 0:02:02]} b4 {[%emt 0:01:24]} 0-1

[Event "XIII Mediterranean Championship 2023"]
[Site "Castell-Platja d Aro"]
[Date "2023.11.05"]
[Round "3.7"]
[White "Asis Gargatagli, Hipolito"]
[Black "Jimenez Ruano, Adrian"]
[Result "1-0"]
[ECO "B90"]
[WhiteElo "2511"]
[BlackElo "2281"]
[Annotator "RC"]
[PlyCount "109"]
[EventDate "2023.10.26"]
[EventType "swiss"]
[EventCountry "ESP"]
[SourceTitle "playchess.com"]
[Source "ChessBase"]
[SourceQuality "1"]
[TimeControl "5400+30"]

1. e4 {[%emt 0:02:58]} c5 {[%emt 0:00:31]} 2. Nf3 {[%emt 0:00:12]} d6 {[%emt 0:00:22]} 3. d4 {[%emt 0:00:34]} cxd4 {[%emt 0:00:06]} 4. Nxd4 {[%emt 0:00:04]} Nf6 {[%emt 0:00:09]} 5. Nc3 {[%emt 0:00:06]} a6 {[%emt 0:00:04]} 6. f3 {[%emt 0:00:37]} e5 {[%emt 0:03:53]} 7. Nb3 {[%emt 0:00:09]} Be6 {[%emt 0:00:51]} 8. Be3 {[%emt 0:00:19]} h5 {[%emt 0:00:49]} 9. Nd5 {[%emt 0:04:52]} Nxd5 {[%emt 0:16:33]} 10. exd5 {[%emt 0:02:01]} Bf5 {[%emt 0:00:01]} 11. Bd3 {[%emt 0:06:24]} Bxd3 {[%emt 0:00:20]} 12. Qxd3 {[%emt 0:00:05]} Be7 {[%emt 0:00:19]} 13. O-O-O {[%emt 0:14:30]} Bg5 {[%emt 0:03:20]} 14. Kb1 {[%emt 0:12:59]} Bxe3 {[%emt 0:04:51]} 15. Qxe3 {[%emt 0:00:17]} O-O {[%emt 0:00:03]} 16. g4 {[%emt 0:02:10]} hxg4 {[%emt 0:09:32]} 17. fxg4 {[%emt 0:03:54]} Nd7 {[%emt 0:00:38]} 18. h4 {[%emt 0:06:56]} Qb6 {[%emt 0:10:43]} 19. Qf3 {[%emt 0:06:52]} Rac8 {[%emt 0:27:15]} 20. Qf5 {[%emt 0:04:03]} Nf6 {[%emt 0:01:01]} 21. g5 {[%emt 0:23:38]} Nh5 {[%emt 0:00:43]} 22. Qf3 {[%emt 0:01:40]} g6 {[%emt 0:03:11]} 23. Nd2 {[%emt 0:06:40]} Qc7 {[%emt 0:03:23]} 24. c3 {[%emt 0:00:00]} f5 {[%emt 0:02:03]} 25. gxf6 {[%emt 0:00:00]} Rxf6 {[%emt 0:00:05]} 26. Qg4 {[%emt 0:00:00]} Kh7 {[%emt 0:01:11]} 27. Rhg1 {[%emt 0:00:00]} Rg8 {[%emt 0:00:56]} 28. Ne4 {[%emt 0:00:00]} Rf4 {[%emt 0:00:05]} 29. Ng5+ {[%emt 0:00:00]} Kh6 {[%emt 0:00:08]} 30. Qh3 {[%emt 0:00:00]} Qb6 {[%emt 0:07:00]} 31. Qd7 {[%emt 0:00:00]} Nf6 {[%emt 0:04:17]} 32. Qe7 {[%emt 0:01:21]} Rg7 {[%emt 0:01:35]} 33. Nf7+ {[%emt 0:00:49]} Kh7 {[%emt 0:00:03]} 34. Qf8 {[%emt 0:01:13]} Ng8 {[%emt 0:00:33]} 35. Qxd6 {[%emt 0:01:22]} Qxd6 {[%emt 0:00:13]} 36. Nxd6 {[%emt 0:00:04]} Rd7 {[%emt 0:01:00]} 37. Nc8 {[%emt 0:00:09]} Nf6 {[%emt 0:01:13]} 38. d6 {[%emt 0:00:14]} Ne4 {[%emt 0:00:00]} 39. Rd5 {[%emt 0:01:16]} Rf8 {[%emt 0:00:26]} 40. Rxe5 {[%emt 0:01:21]} Nd2+ {[%emt 0:00:12]} 41. Kc1 {[%emt 0:00:20]} Rxc8 {[%emt 0:00:35]} 42. Kxd2 {[%emt 0:00:04]} Rxd6+ {[%emt 0:00:01]} 43. Kc2 {[%emt 0:00:15]} Kh6 {[%emt 0:00:58]} 44. h5 {[%emt 0:00:45]} gxh5 {[%emt 0:00:39]} 45. Rh1 {[%emt 0:00:11]} Kg6 {[%emt 0:00:30]} 46. Rexh5 {[%emt 0:00:07]} Rcc6 {[%emt 0:00:33]} 47. Rh6+ {[%emt 0:00:24]} Kf5 {[%emt 0:00:34]} 48. Rxd6 {[%emt 0:00:06]} Rxd6 {[%emt 0:00:01]} 49. Re1 {[%emt 0:00:05]} Rb6 {[%emt 0:00:25]} 50. Re8 {[%emt 0:01:10]} Rg6 {[%emt 0:00:18]} 51. a4 {[%emt 0:00:38]} Rd6 {[%emt 0:01:14]} 52. Re7 {[%emt 0:00:30]} b5 {[%emt 0:00:27]} 53. axb5 {[%emt 0:00:08]} axb5 {[%emt 0:00:01]} 54. Rb7 {[%emt 0:00:16]} Rd5 {[%emt 0:00:06]} 55. Kb3 {[%emt 0:00:18]} 1-0

[Event "XIII Mediterranean Championship 2023"]
[Site "Castell-Platja d Aro"]
[Date "2023.11.05"]
[Round "3.8"]
[White "Lever, Erwan"]
[Black "Garcia Ramos, Daniel"]
[Result "0-1"]
[ECO "E11"]
[WhiteElo "2184"]
[BlackElo "2455"]
[Annotator "RC"]
[PlyCount "94"]
[EventDate "2023.10.26"]
[EventType "swiss"]
[EventCountry "ESP"]
[SourceTitle "playchess.com"]
[Source "ChessBase"]
[SourceQuality "1"]
[TimeControl "5400+30"]

1. d4 {[%emt 0:00:01]} Nf6 {[%emt 0:00:29]} 2. c4 {[%emt 0:00:10]} e6 {[%emt 0:00:42]} 3. g3 {[%emt 0:00:05]} Bb4+ {[%emt 0:00:53]} 4. Bd2 {[%emt 0:00:19]} Be7 {[%emt 0:00:22]} 5. Bg2 {[%emt 0:00:08]} d5 {[%emt 0:00:06]} 6. Nf3 {[%emt 0:00:06]} O-O {[%emt 0:00:07]} 7. O-O {[%emt 0:00:38]} c6 {[%emt 0:00:04]} 8. Qc2 {[%emt 0:00:06]} Nbd7 {[%emt 0:01:12]} 9. Rd1 {[%emt 0:00:06]} b6 {[%emt 0:00:09]} 10. b3 {[%emt 0:00:00]} Bb7 {[%emt 0:03:46]} 11. Nc3 {[%emt 0:00:00]} c5 {[%emt 0:10:10]} 12. cxd5 {[%emt 0:11:58]} exd5 {[%emt 0:00:44]} 13. dxc5 {[%emt 0:03:54]} Bxc5 {[%emt 0:14:14]} 14. Be1 {[%emt 0:01:45]} Rc8 {[%emt 0:00:49]} 15. Qb2 {[%emt 0:00:33]} Qe7 {[%emt 0:07:02]} 16. a3 {[%emt 0:01:18]} Rfe8 {[%emt 0:10:42]} 17. Nd4 {[%emt 0:02:11]} Qe5 {[%emt 0:04:09]} 18. e3 {[%emt 0:01:13]} a6 {[%emt 0:00:47]} 19. Rac1 {[%emt 0:01:37]} Bf8 {[%emt 0:07:39]} 20. b4 {[%emt 0:00:55]} b5 {[%emt 0:04:00]} 21. a4 {[%emt 0:04:55]} bxa4 {[%emt 0:04:44]} 22. Nxa4 {[%emt 0:00:07]} Qb8 {[%emt 0:00:09]} 23. Nb3 {[%emt 0:12:16]} Ba8 {[%emt 0:03:11]} 24. Qd4 {[%emt 0:03:55]} Rc4 {[%emt 0:06:06]} 25. Rxc4 {[%emt 0:00:42]} dxc4 {[%emt 0:00:04]} 26. Nbc5 {[%emt 0:08:14]} Bxg2 {[%emt 0:06:49]} 27. Kxg2 {[%emt 0:06:31]} Qa8+ {[%emt 0:03:17]} 28. f3 {[%emt 0:00:42]} Ne5 {[%emt 0:00:58]} 29. e4 {[%emt 0:00:30]} Qc6 {[%emt 0:02:30]} 30. Bc3 {[%emt 0:01:29]} h5 {[%emt 0:00:28]} 31. h3 {[%emt 0:05:55]} Qb5 {[%emt 0:00:37]} 32. Qf2 {[%emt 0:03:22]} Nd3 {[%emt 0:02:08]} 33. Nxd3 {[%emt 0:01:17]} cxd3 {[%emt 0:00:30]} 34. Nc5 {[%emt 0:01:22]} Nd5 {[%emt 0:00:24]} 35. exd5 {[%emt 0:08:29]} Re2 {[%emt 0:00:05]} 36. Nxd3 {[%emt 0:00:08]} Rxf2+ {[%emt 0:00:05]} 37. Nxf2 {[%emt 0:00:05]} Bd6 {[%emt 0:00:25]} 38. Rd2 {[%emt 0:00:53]} f5 {[%emt 0:00:04]} 39. f4 {[%emt 0:06:18]} h4 {[%emt 0:02:33]} 40. Rd3 {[%emt 0:00:10]} hxg3 41. Kxg3 {[%emt 0:00:03]} g5 {[%emt 0:01:53]} 42. Be5 Qxb4 {[%emt 0:00:30]} 43. Bxd6 Qxd6 {[%emt 0:00:30]} 44. Kg2 gxf4 {[%emt 0:00:30]} 45. Rd4 Qg6+ {[%emt 0:00:30]} 46. Kf1 f3 {[%emt 0:00:30]} 47. Ng4 Qb6 {[%emt 0:00:30]} 0-1

[Event "XIII Mediterranean Championship 2023"]
[Site "Castell-Platja d Aro"]
[Date "2023.11.05"]
[Round "3.9"]
[White "Narciso Dublan, Marc"]
[Black "Martinez Pla, Xavier"]
[Result "1-0"]
[ECO "A13"]
[WhiteElo "2401"]
[BlackElo "2263"]
[Annotator "RC"]
[PlyCount "70"]
[EventDate "2023.10.26"]
[EventType "swiss"]
[EventCountry "ESP"]
[SourceTitle "playchess.com"]
[Source "ChessBase"]
[SourceQuality "1"]
[TimeControl "5400+30"]

1. c4 {[%emt 0:02:04]} e6 {[%emt 0:00:26]} 2. g3 {[%emt 0:01:24]} d5 {[%emt 0:00:14]} 3. Bg2 {[%emt 0:00:06]} d4 {[%emt 0:00:10]} 4. d3 {[%emt 0:02:55]} Nc6 {[%emt 0:03:48]} 5. Nf3 {[%emt 0:04:16]} Bc5 {[%emt 0:00:48]} 6. O-O {[%emt 0:00:29]} Nf6 {[%emt 0:00:06]} 7. e4 {[%emt 0:01:22]} e5 {[%emt 0:01:10]} 8. Na3 {[%emt 0:06:59]} O-O {[%emt 0:02:29]} 9. Nc2 {[%emt 0:00:46]} Re8 {[%emt 0:03:44]} 10. a3 {[%emt 0:02:59]} a5 {[%emt 0:01:59]} 11. b3 {[%emt 0:00:50]} Bf8 {[%emt 0:06:15]} 12. Rb1 {[%emt 0:06:13]} g6 {[%emt 0:25:23]} 13. Kh1 {[%emt 0:10:41]} Bg7 {[%emt 0:07:06]} 14. Ng1 {[%emt 0:04:26]} Nd7 {[%emt 0:06:29]} 15. f4 {[%emt 0:04:33]} exf4 {[%emt 0:03:06]} 16. gxf4 {[%emt 0:00:11]} Nc5 {[%emt 0:03:50]} 17. Ne1 {[%emt 0:03:14]} Qe7 {[%emt 0:12:06]} 18. Ngf3 {[%emt 0:16:52]} Bg4 {[%emt 0:04:23]} 19. Qc2 {[%emt 0:00:15]} Qd7 {[%emt 0:05:18]} 20. Qf2 {[%emt 0:12:05]} Rab8 {[%emt 0:06:58]} 21. b4 {[%emt 0:03:09]} axb4 {[%emt 0:00:05]} 22. axb4 {[%emt 0:00:05]} Bxf3 {[%emt 0:00:05]} 23. Qxf3 {[%emt 0:00:52]} Na4 {[%emt 0:00:29]} 24. b5 {[%emt 0:01:21]} Ne7 {[%emt 0:02:43]} 25. f5 {[%emt 0:01:34]} gxf5 {[%emt 0:01:28]} 26. Bh3 {[%emt 0:00:32]} Nc5 {[%emt 0:01:56]} 27. Ba3 {[%emt 0:03:27]} b6 {[%emt 0:00:40]} 28. Ng2 {[%emt 0:00:58]} Ng6 {[%emt 0:00:44]} 29. Bxf5 {[%emt 0:00:30]} Qe7 {[%emt 0:00:22]} 30. Qh3 {[%emt 0:03:38]} Be5 {[%emt 0:00:36]} 31. Nf4 {[%emt 0:02:08]} Bxf4 {[%emt 0:00:32]} 32. Rxf4 {[%emt 0:00:06]} Ra8 {[%emt 0:00:23]} 33. Bb2 {[%emt 0:04:41]} Qe5 {[%emt 0:00:37]} 34. Rf2 {[%emt 0:00:45]} Ra7 {[%emt 0:00:31]} 35. Rbf1 {[%emt 0:00:27]} Re7 {[%emt 0:01:01]} 1-0

[Event "XIII Mediterranean Championship 2023"]
[Site "Castell-Platja d Aro"]
[Date "2023.11.05"]
[Round "3.10"]
[White "Lacasa Diaz, Jose Antonio"]
[Black "Vinas Racionero, Josep"]
[Result "1-0"]
[ECO "C55"]
[WhiteElo "2353"]
[BlackElo "2075"]
[Annotator "RC"]
[PlyCount "55"]
[EventDate "2023.10.26"]
[EventType "swiss"]
[EventCountry "ESP"]
[SourceTitle "playchess.com"]
[Source "ChessBase"]
[SourceQuality "1"]
[TimeControl "5400+30"]

1. e4 {[%emt 0:00:24]} e5 {[%emt 0:00:30]} 2. Nf3 {[%emt 0:00:10]} Nc6 {[%emt 0:00:06]} 3. Bc4 {[%emt 0:01:25]} Nf6 {[%emt 0:00:41]} 4. d3 {[%emt 0:00:11]} h6 {[%emt 0:02:08]} 5. O-O {[%emt 0:01:14]} d6 {[%emt 0:00:43]} 6. a4 {[%emt 0:01:24]} g5 {[%emt 0:02:16]} 7. c3 {[%emt 0:09:38]} Bg7 {[%emt 0:02:52]} 8. a5 {[%emt 0:13:00]} a6 {[%emt 0:05:50]} 9. Nbd2 {[%emt 0:13:45]} O-O {[%emt 0:01:27]} 10. Kh1 {[%emt 0:08:50]} Ne7 {[%emt 0:02:31]} 11. Re1 {[%emt 0:05:09]} Ng6 {[%emt 0:02:52]} 12. Nf1 {[%emt 0:02:05]} Nf4 {[%emt 0:09:58]} 13. Bxf4 {[%emt 0:06:27]} gxf4 {[%emt 0:00:16]} 14. d4 {[%emt 0:03:45]} Qe7 {[%emt 0:07:25]} 15. dxe5 {[%emt 0:05:05]} dxe5 {[%emt 0:07:12]} 16. h3 {[%emt 0:00:49]} Nh7 {[%emt 0:06:19]} 17. Qe2 {[%emt 0:02:06]} Ng5 {[%emt 0:00:59]} 18. N1h2 {[%emt 0:02:00]} Bd7 {[%emt 0:07:10]} 19. Rad1 {[%emt 0:05:31]} Rad8 {[%emt 0:04:41]} 20. Nxg5 {[%emt 0:02:28]} Qxg5 {[%emt 0:02:25]} 21. Rd3 {[%emt 0:00:31]} Kh8 {[%emt 0:03:09]} 22. Red1 {[%emt 0:00:27]} Qe7 {[%emt 0:05:56]} 23. Qd2 {[%emt 0:01:00]} Be6 {[%emt 0:03:45]} 24. Rxd8 {[%emt 0:00:19]} Bxc4 {[%emt 0:00:08]} 25. Rxf8+ {[%emt 0:00:39]} Bxf8 {[%emt 0:00:13]} 26. Qd8 {[%emt 0:00:33]} Qc5 {[%emt 0:00:56]} 27. b4 {[%emt 0:00:57]} Qe7 {[%emt 0:00:05]} 28. Ng4 {[%emt 0:02:23]} 1-0

[Event "XIII Mediterranean Championship 2023"]
[Site "Castell-Platja d Aro"]
[Date "2023.11.05"]
[Round "3.11"]
[White "Pham Guerrero, Sergi"]
[Black "Masague Artero, Guerau"]
[Result "0-1"]
[ECO "B23"]
[WhiteElo "2072"]
[BlackElo "2305"]
[Annotator "RC"]
[PlyCount "40"]
[EventDate "2023.10.26"]
[EventType "swiss"]
[EventCountry "ESP"]
[SourceTitle "playchess.com"]
[Source "ChessBase"]
[SourceQuality "1"]
[TimeControl "5400+30"]

1. e4 {[%emt 0:00:29]} c5 {[%emt 0:00:19]} 2. Nc3 {[%emt 0:00:24]} Nc6 {[%emt 0:00:30]} 3. f4 {[%emt 0:00:11]} g6 {[%emt 0:00:04]} 4. Nf3 {[%emt 0:00:14]} Bg7 {[%emt 0:00:15]} 5. a4 {[%emt 1:31:42]} e6 {[%emt 1:31:52]} 6. e5 {[%emt 0:00:00]} d5 {[%emt 0:00:00]} 7. d4 {[%emt 0:00:00]} cxd4 {[%emt 0:00:00]} 8. Nb5 {[%emt 0:00:00]} Bf8 {[%emt 0:00:00]} 9. Nbxd4 {[%emt 0:00:00]} Nh6 {[%emt 0:00:00]} 10. c3 {[%emt 0:00:00]} Nf5 {[%emt 0:00:00]} 11. Nxf5 {[%emt 0:00:00]} gxf5 {[%emt 0:00:00]} 12. Be3 {[%emt 0:00:00]} Rg8 {[%emt 0:00:00]} 13. Qd2 {[%emt 0:00:00]} Bd7 {[%emt 0:00:00]} 14. b4 {[%emt 0:00:00]} Rc8 {[%emt 0:00:00]} 15. Bd3 {[%emt 0:00:00]} d4 {[%emt 0:00:00]} 16. Bxd4 {[%emt 0:00:00]} a5 {[%emt 0:00:00]} 17. b5 {[%emt 0:00:00]} Nxd4 {[%emt 0:00:00]} 18. Nxd4 {[%emt 0:00:00]} Rxc3 {[%emt 0:00:00]} 19. O-O {[%emt 0:00:00]} Bc5 {[%emt 0:00:00]} 20. Qxc3 {[%emt 0:00:00]} Bc6 {[%emt 0:00:00]} 0-1

[Event "XIII Mediterranean Championship 2023"]
[Site "Castell-Platja d Aro"]
[Date "2023.11.05"]
[Round "3.12"]
[White "Garcia Paolicchi, Raul"]
[Black "Garcia Jimenez, Francisco Javier"]
[Result "0-1"]
[ECO "A44"]
[WhiteElo "2051"]
[BlackElo "2249"]
[Annotator "RC"]
[PlyCount "166"]
[EventDate "2023.10.26"]
[EventType "swiss"]
[EventCountry "ESP"]
[SourceTitle "playchess.com"]
[Source "ChessBase"]
[SourceQuality "1"]
[TimeControl "5400+30"]

1. d4 {[%emt 0:00:03]} c5 {[%emt 0:00:20]} 2. d5 {[%emt 0:00:18]} Nf6 {[%emt 0:00:15]} 3. Nc3 {[%emt 0:00:32]} e5 {[%emt 0:00:46]} 4. e4 {[%emt 0:00:33]} d6 {[%emt 0:00:32]} 5. Nf3 {[%emt 0:00:45]} Be7 {[%emt 0:00:08]} 6. Nd2 {[%emt 0:01:57]} O-O {[%emt 0:00:13]} 7. Be2 {[%emt 0:01:49]} Na6 {[%emt 0:00:40]} 8. Nc4 {[%emt 0:01:29]} b5 {[%emt 0:03:49]} 9. Nxb5 {[%emt 0:02:08]} Nxe4 {[%emt 0:00:05]} 10. O-O {[%emt 0:05:36]} Nc7 {[%emt 0:12:43]} 11. Nxc7 {[%emt 0:02:52]} Qxc7 {[%emt 0:00:18]} 12. f3 {[%emt 0:03:06]} Nf6 {[%emt 0:00:36]} 13. f4 {[%emt 0:12:48]} exf4 {[%emt 0:08:18]} 14. Bxf4 {[%emt 0:00:28]} Re8 {[%emt 0:00:14]} 15. Ne3 {[%emt 0:07:52]} Bf8 {[%emt 0:01:37]} 16. Bb5 {[%emt 0:04:33]} Bd7 {[%emt 0:03:17]} 17. Bxd7 {[%emt 0:00:19]} Qxd7 {[%emt 0:04:21]} 18. Qd3 {[%emt 0:03:12]} Re4 {[%emt 0:09:00]} 19. Bg5 {[%emt 0:06:09]} Rd4 {[%emt 0:00:07]} 20. Qf5 {[%emt 0:00:24]} Qxf5 {[%emt 0:10:48]} 21. Nxf5 {[%emt 0:00:13]} Rxd5 {[%emt 0:00:28]} 22. Bxf6 {[%emt 0:00:07]} gxf6 {[%emt 0:00:04]} 23. Rad1 {[%emt 0:03:20]} Re5 {[%emt 0:04:20]} 24. c4 {[%emt 0:03:22]} Rd8 {[%emt 0:01:20]} 25. Ng3 {[%emt 0:08:33]} d5 {[%emt 0:02:37]} 26. cxd5 {[%emt 0:01:44]} Rdxd5 {[%emt 0:02:10]} 27. Rxd5 {[%emt 0:00:10]} Rxd5 {[%emt 0:34:54]} 28. Rf5 {[%emt 0:03:02]} Rd1+ {[%emt 0:00:00]} 29. Rf1 {[%emt 0:01:29]} Rd2 {[%emt 0:00:00]} 30. Rf2 {[%emt 0:00:09]} Rd1+ {[%emt 0:00:00]} 31. Rf1 {[%emt 0:00:08]} Rd8 {[%emt 0:00:00]} 32. Nf5 {[%emt 0:03:48]} c4 {[%emt 0:00:00]} 33. h3 {[%emt 0:06:09]} Rd2 {[%emt 0:00:00]} 34. Rf4 {[%emt 0:00:41]} Bc5+ {[%emt 0:00:00]} 35. Kh2 {[%emt 0:03:43]} c3 {[%emt 0:00:00]} 36. bxc3 {[%emt 0:02:54]} Rxa2 {[%emt 0:00:00]} 37. Rc4 {[%emt 0:00:55]} Ra5 {[%emt 0:00:00]} 38. Kg3 {[%emt 0:00:53]} h5 {[%emt 0:00:00]} 39. Kf3 {[%emt 0:00:44]} Kh7 {[%emt 0:00:00]} 40. Ng3 {[%emt 0:02:55]} Bd6 {[%emt 0:00:00]} 41. Ne2 {[%emt 0:01:20]} Rf5+ {[%emt 0:01:22]} 42. Ke3 {[%emt 0:00:30]} Bc5+ {[%emt 0:00:33]} 43. Nd4 {[%emt 0:00:22]} Bb6 {[%emt 0:01:43]} 44. Rc6 {[%emt 0:01:07]} Kg6 {[%emt 0:00:41]} 45. Ke2 {[%emt 0:00:51]} Re5+ {[%emt 0:00:57]} 46. Kf3 {[%emt 0:00:23]} h4 {[%emt 0:00:13]} 47. Kf4 {[%emt 0:01:03]} Rg5 {[%emt 0:00:23]} 48. Nf3 {[%emt 0:01:19]} Rh5 {[%emt 0:01:23]} 49. Kg4 {[%emt 0:01:00]} Bf2 {[%emt 0:00:19]} 50. Kf4 {[%emt 0:01:21]} a5 {[%emt 0:01:32]} 51. Ke4 {[%emt 0:00:40]} Rb5 {[%emt 0:00:54]} 52. Ra6 {[%emt 0:00:19]} Bg3 {[%emt 0:00:33]} 53. c4 {[%emt 0:01:40]} Rb2 {[%emt 0:00:04]} 54. Rxa5 {[%emt 0:00:13]} Rxg2 {[%emt 0:00:07]} 55. c5 {[%emt 0:00:35]} f5+ {[%emt 0:00:24]} 56. Kd5 {[%emt 0:00:35]} Rf2 {[%emt 0:00:31]} 57. Ne5+ {[%emt 0:00:49]} Kg7 {[%emt 0:00:18]} 58. c6 {[%emt 0:01:13]} Rd2+ {[%emt 0:00:48]} 59. Kc4 {[%emt 0:00:14]} Rc2+ {[%emt 0:00:31]} 60. Kd5 {[%emt 0:00:28]} Rd2+ {[%emt 0:01:30]} 61. Kc4 {[%emt 0:00:20]} Kf6 {[%emt 0:00:17]} 62. Nd3 {[%emt 0:00:59]} Rc2+ {[%emt 0:00:59]} 63. Kd5 {[%emt 0:00:22]} Rd2 {[%emt 0:00:53]} 64. Kc4 {[%emt 0:00:12]} Bd6 {[%emt 0:00:23]} 65. Ra7 {[%emt 0:01:13]} f4 {[%emt 0:00:43]} 66. Ra1 {[%emt 0:01:21]} Ke6 {[%emt 0:00:55]} 67. Rf1 {[%emt 0:00:36]} Rc2+ {[%emt 0:00:07]} 68. Kb5 {[%emt 0:00:13]} Kf5 {[%emt 0:00:20]} 69. Rf2 {[%emt 0:00:48]} Rc3 {[%emt 0:00:13]} 70. Ne1 {[%emt 0:00:33]} Rxh3 {[%emt 0:00:22]} 71. Rd2 {[%emt 0:00:21]} Ke6 {[%emt 0:00:30]} 72. Rd3 {[%emt 0:00:43]} Rxd3 {[%emt 0:00:47]} 73. Nxd3 {[%emt 0:00:02]} h3 {[%emt 0:00:12]} 74. Kb6 {[%emt 0:00:23]} h2 {[%emt 0:00:14]} 75. Nf2 {[%emt 0:00:05]} f3 {[%emt 0:00:51]} 76. Kb7 {[%emt 0:00:20]} Kf5 {[%emt 0:00:14]} 77. Kc8 {[%emt 0:00:52]} Bc5 {[%emt 0:01:16]} 78. Kb7 {[%emt 0:00:26]} Bd6 {[%emt 0:00:16]} 79. Kc8 {[%emt 0:00:13]} Bg3 {[%emt 0:00:27]} 80. Kb7 {[%emt 0:00:07]} f6 {[%emt 0:00:28]} 81. Nh1 {[%emt 0:00:22]} Bd6 {[%emt 0:00:07]} 82. Kc8 {[%emt 0:00:19]} Kf4 {[%emt 0:00:14]} 83. Kd7 {[%emt 0:00:07]} Be5 {[%emt 0:00:04]} 0-1

[Event "XIII Mediterranean Championship 2023"]
[Site "Castell-Platja d Aro"]
[Date "2023.11.05"]
[Round "3.13"]
[White "Jimenez Fernandez, Rebeca"]
[Black "Ventura Bolet, Alexandre"]
[Result "1/2-1/2"]
[ECO "B03"]
[WhiteElo "2053"]
[BlackElo "2238"]
[Annotator "RC"]
[PlyCount "112"]
[EventDate "2023.10.26"]
[EventType "swiss"]
[EventCountry "ESP"]
[SourceTitle "playchess.com"]
[Source "ChessBase"]
[SourceQuality "1"]
[TimeControl "5400+30"]

1. e4 {[%emt 0:00:02]} Nf6 {[%emt 0:00:10]} 2. e5 {[%emt 0:00:03]} Nd5 {[%emt 0:00:05]} 3. c4 {[%emt 0:00:03]} Nb6 {[%emt 0:00:06]} 4. d4 {[%emt 0:00:03]} d6 {[%emt 0:00:07]} 5. f4 {[%emt 0:00:03]} g6 {[%emt 0:00:19]} 6. Nc3 {[%emt 0:00:49]} Bg7 {[%emt 0:00:09]} 7. Be3 {[%emt 0:00:05]} Be6 {[%emt 0:00:25]} 8. b3 {[%emt 0:00:11]} O-O {[%emt 0:01:03]} 9. Nf3 {[%emt 0:00:30]} dxe5 {[%emt 0:01:27]} 10. fxe5 {[%emt 0:00:21]} c5 {[%emt 0:00:49]} 11. d5 {[%emt 0:01:17]} Bg4 {[%emt 0:00:30]} 12. Be2 {[%emt 0:14:41]} N8d7 {[%emt 0:04:31]} 13. Rc1 {[%emt 0:13:30]} Bxf3 {[%emt 0:09:14]} 14. Bxf3 {[%emt 0:00:08]} Nxe5 {[%emt 0:00:15]} 15. Bxc5 {[%emt 0:05:32]} Nbd7 {[%emt 0:03:26]} 16. Be3 {[%emt 0:04:05]} Qa5 {[%emt 0:09:25]} 17. Bd4 {[%emt 0:11:15]} Nxf3+ {[%emt 0:14:42]} 18. gxf3 {[%emt 0:00:05]} e5 {[%emt 0:00:26]} 19. dxe6 {[%emt 0:09:48]} Bxd4 {[%emt 0:06:35]} 20. Qxd4 {[%emt 0:06:55]} fxe6 {[%emt 0:13:48]} 21. O-O {[%emt 0:19:09]} Ne5 {[%emt 0:02:05]} 22. f4 {[%emt 0:01:15]} Ng4 {[%emt 0:01:45]} 23. Kh1 {[%emt 0:02:50]} Nxh2 {[%emt 0:04:29]} 24. Kxh2 {[%emt 0:01:14]} Qh5+ {[%emt 0:00:28]} 25. Kg3 {[%emt 0:00:26]} Rad8 {[%emt 0:04:03]} 26. Qe3 {[%emt 0:00:52]} Qf5 {[%emt 0:04:27]} 27. Rcd1 {[%emt 0:00:40]} h5 {[%emt 0:00:06]} 28. Qf3 {[%emt 0:03:23]} Rxd1 {[%emt 0:06:40]} 29. Nxd1 {[%emt 0:00:34]} e5 {[%emt 0:00:15]} 30. Ne3 {[%emt 0:01:06]} exf4+ {[%emt 0:01:24]} 31. Qxf4 {[%emt 0:00:41]} h4+ {[%emt 0:00:11]} 32. Qxh4 {[%emt 0:00:32]} Qe5+ {[%emt 0:00:51]} 33. Kg2 {[%emt 0:00:11]} Qxe3 {[%emt 0:00:37]} 34. Rxf8+ {[%emt 0:00:14]} Kxf8 {[%emt 0:00:05]} 35. Qf6+ {[%emt 0:00:09]} Ke8 {[%emt 0:01:19]} 36. Qxg6+ {[%emt 0:00:08]} Kd7 {[%emt 0:02:13]} 37. Qf7+ {[%emt 0:00:14]} Kc8 {[%emt 0:00:26]} 38. Qg8+ {[%emt 0:00:40]} Kd7 {[%emt 0:00:12]} 39. Qg4+ {[%emt 0:01:14]} Kd8 {[%emt 0:00:24]} 40. Qh4+ {[%emt 0:00:20]} Kd7 {[%emt 0:00:38]} 41. Qf2 {[%emt 0:02:09]} Qg5+ {[%emt 0:01:28]} 42. Kf3 {[%emt 0:00:19]} a6 {[%emt 0:04:41]} 43. Ke4 {[%emt 0:00:40]} Qg4+ {[%emt 0:01:31]} 44. Kd3 {[%emt 0:00:43]} Qg6+ {[%emt 0:00:56]} 45. Kc3 {[%emt 0:00:08]} Kc7 {[%emt 0:00:54]} 46. Qf4+ {[%emt 0:00:41]} Kc8 {[%emt 0:00:30]} 47. Qf8+ {[%emt 0:01:27]} Kc7 {[%emt 0:00:12]} 48. Qc5+ {[%emt 0:00:35]} Kb8 {[%emt 0:00:18]} 49. Qe5+ {[%emt 0:00:04]} Ka8 {[%emt 0:00:28]} 50. b4 {[%emt 0:00:30]} Qb1 {[%emt 0:00:51]} 51. Qh8+ {[%emt 0:00:30]} Ka7 {[%emt 0:00:06]} 52. Qd4+ {[%emt 0:00:05]} Ka8 {[%emt 0:00:10]} 53. Qd8+ {[%emt 0:00:09]} Ka7 {[%emt 0:00:06]} 54. a3 {[%emt 0:01:29]} Qc1+ {[%emt 0:01:09]} 55. Kb3 {[%emt 0:00:04]} Qb1+ {[%emt 0:00:32]} 56. Kc3 {[%emt 0:01:15]} Qc1+ {[%emt 0:00:06]} 1/2-1/2